bitfinex-derivatives/quotes_BTCF0:USTF0_20251128
["timestamp","ask_amount","ask_price","bid_price","bid_amount"]
[1764306002901,0.73928,91487.0,91486.0,0.013336]
[1764306003107,0.73928,91487.0,91481.0,9.308e-05]
[1764306003108,0.00928,91484.0,91481.0,9.308e-05]
[1764306003307,0.86928,91484.0,91481.0,9.308e-05]
[1764306004206,0.86928,91484.0,91483.0,0.01625256]
[1764306004506,0.86928,91484.0,91483.0,0.002]
[1764306006604,0.42928,91484.0,91483.0,0.002]
[1764306006803,0.54928,91484.0,91483.0,0.04613]
[1764306008009,0.42928,91484.0,91483.0,0.04613]
[1764306008712,0.42928,91484.0,91483.0,0.06001351]
[1764306013205,0.82928,91484.0,91483.0,0.06001351]
[1764306013510,0.56928,91484.0,91483.0,0.06001351]
[1764306015817,0.56928,91484.0,91483.0,0.01588351]
[1764306015818,0.85928,91484.0,91483.0,0.01588351]
[1764306016612,0.85928,91484.0,91483.0,0.03724351]
[1764306018312,0.85928,91484.0,91483.0,0.05848351]
[1764306019618,0.60928,91484.0,91483.0,0.05848351]
[1764306020121,0.42928,91484.0,91483.0,0.05848351]
[1764306023012,0.00928,91484.0,91483.0,0.05848351]
[1764306023218,0.43928,91484.0,91483.0,0.05848351]
[1764306023415,0.12928,91484.0,91483.0,0.05848351]
[1764306023816,0.38928,91484.0,91483.0,0.05848351]
[1764306024716,0.80928,91484.0,91483.0,0.01588351]
[1764306025617,0.83366398,91484.0,91483.0,0.01588351]
[1764306026817,0.83830398,91484.0,91483.0,0.002]
[1764306027023,0.00928,91478.0,91477.0,0.0001639]
[1764306027319,0.84459848,91478.0,91477.0,0.01405158]
[1764306027518,0.84459848,91478.0,91477.0,0.0001639]
[1764306028024,0.84468471,91478.0,91477.0,0.0001639]
[1764306028412,0.84768471,91478.0,91477.0,0.0001639]
[1764306028916,0.82330073,91478.0,91477.0,0.0001639]
[1764306029123,1.01979835,91478.0,91477.0,0.0001639]
[1764306030617,0.020216,91465.0,91464.0,0.05551]
[1764306030817,0.82246908,91465.0,91464.0,0.05551]
[1764306032026,0.82646908,91465.0,91464.0,0.06875781]
[1764306042636,0.00928,91456.0,91455.0,0.000164]
[1764306042834,1.06152662,91456.0,91455.0,0.000164]
[1764306043028,1.07246372,91456.0,91455.0,0.000164]
[1764306044136,1.07446372,91456.0,91455.0,0.000164]
[1764306044941,1.07446372,91456.0,91455.0,0.022124]
[1764306045435,1.07446372,91456.0,91446.0,0.02223339]
[1764306045436,0.0202182,91447.0,91446.0,0.02223339]
[1764306045637,0.63247128,91447.0,91446.0,0.04362339]
[1764306046232,1.05247128,91447.0,91446.0,0.04362339]
[1764306046434,0.63247128,91447.0,91446.0,0.04362339]
[1764306049942,0.63247128,91447.0,91446.0,0.05707923]
[1764306051342,0.63247128,91447.0,91446.0,0.01372923]
[1764306051550,0.79247128,91447.0,91446.0,0.04335001]
[1764306051752,0.63247128,91447.0,91446.0,0.04335001]
[1764306055738,1.06319128,91447.0,91446.0,1e-08]
[1764306056340,0.63247128,91447.0,91446.0,0.04335001]
[1764306062437,0.00937308,91447.0,91446.0,0.04335001]
[1764306062744,0.40937308,91447.0,91446.0,0.04335001]
[1764306069249,0.40009308,91447.0,91446.0,0.04335001]
[1764306069743,0.18009308,91447.0,91446.0,0.04335001]
[1764306070654,0.18473308,91447.0,91446.0,0.04335001]
[1764306072854,0.40473308,91447.0,91446.0,0.04335001]
[1764306073249,0.40937308,91447.0,91446.0,0.04335001]
[1764306074850,0.15937308,91447.0,91446.0,0.04335001]
[1764306077958,0.35937308,91447.0,91446.0,0.04335001]
[1764306080154,0.00937308,91447.0,91446.0,0.04335001]
[1764306080360,0.06937308,91447.0,91446.0,0.04335001]
[1764306081653,0.13937308,91447.0,91446.0,0.04335001]
[1764306082448,0.00937308,91447.0,91446.0,0.04335001]
[1764306086454,0.36937308,91447.0,91446.0,0.04335001]
[1764306090661,0.79937308,91447.0,91446.0,0.04335001]
[1764306090856,0.79009308,91447.0,91446.0,1e-08]
[1764306091261,0.8147309,91447.0,91446.0,1e-08]
[1764306092962,0.8147309,91447.0,91422.0,0.09163811]
[1764306092963,0.00928,91420.0,91419.0,0.09971811]
[1764306093170,0.37937308,91420.0,91419.0,0.0434]
[1764306094462,0.00928,91416.0,91415.0,0.05786533]
[1764306094668,0.37928,91416.0,91415.0,0.04348843]
[1764306096060,0.38128,91416.0,91415.0,0.04348843]
[1764306096665,0.43128,91416.0,91415.0,0.04348843]
[1764306098055,0.43128,91416.0,91415.0,8.843e-05]
[1764306098667,0.43128,91416.0,91415.0,0.02170843]
[1764306098967,0.43128,91416.0,91415.0,0.04348843]
[1764306099163,0.43128,91416.0,91415.0,0.05797673]
[1764306099762,0.39128,91416.0,91415.0,0.05797673]
[1764306105568,0.39128,91416.0,91415.0,0.01457673]
[1764306105874,0.4022219,91416.0,91415.0,0.01457673]
[1764306106882,0.8122219,91416.0,91415.0,0.01457673]
[1764306109770,0.4322219,91416.0,91415.0,0.05797673]
[1764306110074,0.4022219,91416.0,91415.0,0.05797673]
[1764306110264,0.5122219,91416.0,91415.0,0.05797673]
[1764306110468,0.5122219,91416.0,91415.0,0.01457673]
[1764306110669,0.7522219,91416.0,91415.0,0.01457673]
[1764306111574,0.7522219,91416.0,91415.0,0.03619673]
[1764306111769,0.4822219,91416.0,91415.0,0.03619673]
[1764306112371,0.4822219,91416.0,91415.0,0.05797673]
[1764306112878,0.4022219,91416.0,91415.0,0.05797673]
[1764306115974,0.7722219,91416.0,91415.0,0.01457673]
[1764306117072,0.7768619,91416.0,91415.0,0.01457673]
[1764306119376,0.8016194,91416.0,91410.0,0.00010949]
[1764306119584,0.0202225,91411.0,91410.0,0.00010949]
[1764306119878,0.8102225,91411.0,91410.0,0.00010949]
[1764306120069,0.8349052,91411.0,91410.0,0.00010949]
[1764306120570,0.0202242,91397.0,91396.0,0.05718]
[1764306120875,0.41032717,91397.0,91396.0,0.05718]
[1764306121768,0.0202247,91393.0,91392.0,0.05727]
[1764306121973,0.4402247,91393.0,91392.0,0.05727]
[1764306124181,0.4402247,91393.0,91392.0,0.06127]
[1764306124882,0.42464,91393.0,91392.0,0.06127]
[1764306125179,0.42,91393.0,91392.0,0.06127]
[1764306125383,0.00010297,91397.0,91396.0,0.0677843]
[1764306125584,0.38010297,91397.0,91396.0,0.0677843]
[1764306126779,0.00010297,91397.0,91396.0,0.0677843]
[1764306127378,0.00010297,91397.0,91396.0,0.0697843]
[1764306132684,0.00016409,91406.0,91405.0,0.0545132]
[1764306132879,0.0109414,91420.0,91416.0,0.05706]
[1764306133084,0.4502214,91420.0,91419.0,0.04345]
[1764306133283,0.06928,91420.0,91419.0,0.04345]
[1764306133484,0.0109411,91424.0,91423.0,0.04345]
[1764306133485,0.0202211,91424.0,91423.0,0.04345]
[1764306133781,0.39029964,91424.0,91423.0,0.04345]
[1764306134684,0.39329964,91424.0,91423.0,0.04345]
[1764306135085,0.01235854,91424.0,91423.0,0.04345]
[1764306135280,0.00307854,91424.0,91423.0,0.04345]
[1764306136483,0.00771854,91424.0,91423.0,0.04345]
[1764306138794,0.01235854,91424.0,91423.0,0.04345]
[1764306139802,0.01235854,91424.0,91423.0,0.06891999]
[1764306140596,0.00935854,91424.0,91423.0,0.05797889]
[1764306140789,0.01235854,91424.0,91423.0,0.05797889]
[1764306141189,0.00935854,91424.0,91423.0,0.05797889]
[1764306141390,0.01135854,91424.0,91423.0,0.05797889]
[1764306142791,0.00935854,91424.0,91423.0,0.05797889]
[1764306142997,0.01135854,91424.0,91423.0,0.05797889]
[1764306147291,0.00207854,91424.0,91423.0,0.05797889]
[1764306147497,0.00016409,91433.0,91432.0,0.05706]
[1764306147806,0.41016409,91433.0,91432.0,0.05706]
[1764306148696,0.41480409,91433.0,91432.0,0.05706]
[1764306149303,0.41944409,91433.0,91432.0,0.05706]
[1764306149497,0.42044409,91433.0,91432.0,0.05706]
[1764306149901,0.42144409,91433.0,91432.0,0.05706]
[1764306150405,0.41944409,91433.0,91432.0,0.05706]
[1764306150606,0.42144409,91433.0,91432.0,0.05706]
[1764306151198,0.41680409,91433.0,91432.0,0.05706]
[1764306151398,0.42144409,91433.0,91432.0,0.05706]
[1764306152207,0.41944409,91433.0,91432.0,0.05706]
[1764306152413,0.42044409,91433.0,91432.0,0.05706]
[1764306157708,0.41116409,91433.0,91432.0,0.05706]
[1764306157905,0.00116409,91433.0,91432.0,0.05706]
[1764306159206,0.00016409,91433.0,91432.0,0.05706]
[1764306159512,0.00116409,91433.0,91432.0,0.05706]
[1764306161114,0.45138399,91433.0,91432.0,0.05706]
[1764306162901,0.44044409,91433.0,91432.0,0.05706]
[1764306163211,0.00116409,91433.0,91432.0,0.05706]
[1764306164915,0.01044409,91433.0,91432.0,0.05706]
[1764306165713,0.00116409,91433.0,91432.0,0.05706]
[1764306171899,0.00580409,91433.0,91432.0,0.05706]
[1764306173610,0.01044409,91433.0,91432.0,0.05706]
[1764306174505,0.41044409,91433.0,91432.0,0.05706]
[1764306180920,0.11116409,91433.0,91432.0,0.05706]
[1764306181421,0.00116409,91433.0,91432.0,0.05706]
[1764306184317,0.01044409,91433.0,91432.0,0.05706]
[1764306184510,0.01044409,91433.0,91432.0,0.03541]
[1764306184511,0.37044409,91433.0,91432.0,0.03541]
[1764306184820,0.37044409,91433.0,91432.0,0.0218]
[1764306185117,0.37044409,91433.0,91432.0,0.04402]
[1764306185722,0.76044409,91433.0,91432.0,0.0218]
[1764306186019,0.76044409,91433.0,91432.0,0.04402]
[1764306186614,0.78502152,91433.0,91432.0,0.04402]
[1764306187722,0.76044409,91433.0,91432.0,0.04402]
[1764306188917,0.78502188,91433.0,91432.0,0.04402]
[1764306189328,0.76044409,91433.0,91432.0,0.04402]
[1764306189521,0.78502174,91433.0,91432.0,0.04402]
[1764306193218,0.78502174,91433.0,91424.0,0.05651]
[1764306193219,0.0202208,91425.0,91424.0,0.05651]
[1764306193422,0.8002208,91425.0,91423.0,0.01452889]
[1764306193626,0.8002208,91425.0,91420.0,0.01361]
[1764306193627,0.00928,91421.0,91420.0,0.05651]
[1764306193817,0.41928,91421.0,91420.0,0.05651]
[1764306195417,0.81928,91421.0,91420.0,0.05651]
[1764306196133,0.020222,91415.0,91414.0,0.02152409]
[1764306196427,0.830222,91415.0,91414.0,0.04306409]
[1764306196725,0.450222,91415.0,91414.0,0.04306409]
[1764306196931,0.520222,91415.0,91414.0,0.0584038]
[1764306197427,0.520222,91415.0,91414.0,0.0624038]
[1764306200627,0.450222,91415.0,91414.0,0.0624038]
[1764306202224,0.00464,91440.0,91414.0,0.0624038]
[1764306202225,0.14222659,91430.0,91414.0,0.0733459]
[1764306202427,0.71244679,91430.0,91429.0,0.0429]
[1764306202628,0.6231402,91430.0,91429.0,0.0429]
[1764306203424,0.4431402,91430.0,91429.0,0.0429]
[1764306204131,0.4431402,91430.0,91429.0,0.0439]
[1764306209243,0.4538602,91430.0,91429.0,0.0439]
[1764306209729,0.4585002,91430.0,91429.0,0.0439]
[1764306210234,0.4631402,91430.0,91429.0,0.0439]
[1764306211741,0.4631402,91430.0,91429.0,0.05918219]
[1764306222746,0.8331402,91430.0,91429.0,0.01628219]
[1764306226654,0.8331402,91430.0,91429.0,0.06037219]
[1764306228542,0.8331402,91430.0,91429.0,0.01628219]
[1764306228748,0.85771714,91430.0,91429.0,0.01628219]
[1764306228947,0.85771714,91430.0,91429.0,0.01420369]
[1764306229150,0.0202218,91417.0,91416.0,0.05672]
[1764306229350,0.4202218,91417.0,91416.0,0.05672]
[1764306231259,0.4202218,91417.0,91416.0,0.07454797]
[1764306232857,0.6102218,91417.0,91416.0,0.07454797]
[1764306233060,0.6002218,91417.0,91416.0,0.07454797]
[1764306233257,0.7702218,91417.0,91416.0,0.07454797]
[1764306233958,0.4402218,91417.0,91416.0,0.07454797]
[1764306235262,0.4202218,91417.0,91416.0,0.07454797]
[1764306235455,0.4402218,91417.0,91416.0,0.07454797]
[1764306236359,0.6802218,91417.0,91416.0,0.07454797]
[1764306238465,0.6802218,91417.0,91416.0,0.01782797]
[1764306238968,0.7048171,91417.0,91416.0,0.01782797]
[1764306239361,0.7048171,91417.0,91414.0,0.00016409]
[1764306239362,0.0202232,91405.0,91404.0,0.01263]
[1764306239662,0.0109442,91397.0,91392.0,0.01263]
[1764306239866,0.8302242,91397.0,91396.0,0.05672]
[1764306241461,0.8302242,91397.0,91396.0,0.05972]
[1764306241976,0.3902242,91397.0,91396.0,0.05972]
[1764306242366,0.3902242,91397.0,91396.0,0.04097144]
[1764306242769,0.3902242,91397.0,91396.0,0.06408144]
[1764306244459,0.7602242,91397.0,91396.0,0.06408144]
[1764306244665,0.5202242,91397.0,91396.0,0.06408144]
[1764306254179,0.3902242,91397.0,91396.0,0.06408144]
[1764306254375,0.8402242,91397.0,91396.0,0.01792144]
[1764306256072,1.0125442,91397.0,91396.0,0.01492144]
[1764306256272,0.0202256,91385.0,91384.0,0.05656]
[1764306256473,0.4602256,91385.0,91384.0,0.05656]
[1764306257574,0.4602256,91385.0,91384.0,0.07214293]
[1764306257776,0.4602256,91385.0,91384.0,0.07514293]
[1764306262683,0.4602256,91385.0,91384.0,0.03981293]
[1764306262684,0.8802256,91385.0,91384.0,0.03981293]
[1764306263888,0.8802256,91385.0,91384.0,0.01858293]
[1764306264285,0.4602256,91385.0,91384.0,0.07544293]
[1764306265090,0.4602256,91385.0,91384.0,0.07244293]
[1764306265288,0.4602256,91385.0,91384.0,0.07444293]
[1764306273904,0.1702256,91385.0,91384.0,0.07444293]
[1764306274906,0.4702256,91385.0,91384.0,0.07444293]
[1764306278618,0.5502256,91385.0,91384.0,0.07444293]
[1764306280523,0.4702256,91385.0,91384.0,0.07444293]
[1764306283705,0.9202256,91385.0,91384.0,0.01758293]
[1764306284312,0.9202256,91385.0,91384.0,0.03893293]
[1764306284612,0.5302256,91385.0,91384.0,0.07503293]
[1764306284811,0.9402256,91385.0,91384.0,0.07503293]
[1764306285017,1.2302256,91385.0,91384.0,0.07503293]
[1764306285413,0.9202256,91385.0,91384.0,0.07503293]
[1764306289222,0.8802256,91385.0,91384.0,0.07503293]
[1764306291025,1.1502256,91385.0,91384.0,0.07503293]
[1764306291729,0.8802256,91385.0,91384.0,0.07503293]
[1764306292227,1.0525856,91385.0,91384.0,0.07503293]
[1764306303123,1.0525856,91385.0,91384.0,0.01758293]
[1764306303430,1.29755657,91385.0,91384.0,0.01758293]
[1764306304329,1.29755657,91385.0,91384.0,0.01558293]
[1764306304527,1.29755657,91385.0,91384.0,0.001]
[1764306304926,1.07755657,91385.0,91384.0,0.05864]
[1764306306737,1.46755657,91385.0,91384.0,0.05864]
[1764306306927,1.46755657,91385.0,91384.0,0.0237]
[1764306307328,1.46755657,91385.0,91384.0,0.001]
[1764306312730,0.0202266,91377.0,91376.0,0.01378846]
[1764306312924,0.0202275,91369.0,91368.0,0.05898]
[1764306313130,0.9526675,91369.0,91368.0,0.05898]
[1764306313639,0.9526675,91369.0,91368.0,0.07321209]
[1764306314030,0.9526675,91369.0,91368.0,0.07521209]
[1764306317135,0.54244,91369.0,91368.0,0.07521209]
[1764306317540,0.37,91369.0,91368.0,0.07521209]
[1764306317733,0.5412,91369.0,91368.0,0.07521209]
[1764306318534,0.55048,91369.0,91368.0,0.07521209]
[1764306320045,0.5412,91369.0,91368.0,0.07521209]
[1764306321547,0.37,91369.0,91368.0,0.07521209]
[1764306321936,0.12512,91389.0,91380.0,0.05805]
[1764306321937,0.0155862,91381.0,91380.0,0.05805]
[1764306322137,0.3755862,91381.0,91380.0,0.05805]
[1764306322341,0.3802262,91381.0,91380.0,0.05805]
[1764306323547,0.3812262,91381.0,91380.0,0.05805]
[1764306323748,0.37028,91381.0,91380.0,0.05805]
[1764306323946,0.36564,91381.0,91380.0,0.05805]
[1764306326144,0.361,91381.0,91380.0,0.05805]
[1764306326344,0.361,91381.0,91380.0,0.13676056]
[1764306327247,0.361,91381.0,91380.0,0.05805]
[1764306328046,0.361,91381.0,91380.0,0.07193862]
[1764306328947,0.36564,91381.0,91380.0,0.07193862]
[1764306329144,0.37028,91381.0,91380.0,0.07193862]
[1764306329344,0.37028,91381.0,91380.0,0.15059704]
[1764306329741,0.361,91381.0,91380.0,0.15059704]
[1764306329942,0.37028,91381.0,91380.0,0.15059704]
[1764306331852,0.37028,91381.0,91380.0,0.07193862]
[1764306332942,0.00016409,91386.0,91380.0,0.15059704]
[1764306333250,0.0202241,91398.0,91397.0,0.04308]
[1764306333551,0.39928,91398.0,91397.0,0.04308]
[1764306334145,0.36928,91398.0,91397.0,0.04308]
[1764306335758,0.37228,91398.0,91397.0,0.04308]
[1764306338857,0.033,91398.0,91397.0,0.04308]
[1764306340660,0.032,91398.0,91397.0,0.04308]
[1764306341954,0.03664,91398.0,91397.0,0.04308]
[1764306342159,0.29128,91398.0,91397.0,0.05717508]
[1764306344160,0.04128,91398.0,91397.0,0.05717508]
[1764306344559,0.00480409,91407.0,91406.0,0.04308]
[1764306344764,0.00480409,91407.0,91406.0,0.0540231]
[1764306344958,0.00944409,91407.0,91406.0,0.0540231]
[1764306345170,0.02038709,91407.0,91406.0,0.02182]
[1764306345461,0.00928,91401.0,91400.0,0.0669938]
[1764306348057,0.01128,91401.0,91400.0,0.0669938]
[1764306353065,0.002,91401.0,91400.0,0.0669938]
[1764306354561,0.00016409,91407.0,91406.0,0.0540231]
[1764306354762,0.0202221,91415.0,91414.0,0.0540222]
[1764306354967,0.4002221,91415.0,91414.0,0.0540222]
[1764306356159,0.4052221,91415.0,91414.0,0.0540222]
[1764306356860,0.02964,91415.0,91414.0,0.0540222]
[1764306357060,0.01428,91415.0,91414.0,0.04308]
[1764306357365,0.45428,91415.0,91414.0,0.04308]
[1764306360177,0.45428,91415.0,91414.0,0.05648863]
[1764306364370,0.45428,91415.0,91414.0,0.03522863]
[1764306364770,0.45428,91415.0,91414.0,0.05661863]
[1764306365971,0.45428,91415.0,91414.0,0.01340863]
[1764306366169,0.00928,91411.0,91410.0,0.05629]
[1764306367584,0.01028,91411.0,91410.0,0.05629]
[1764306367980,0.0212225,91411.0,91410.0,0.05629]
[1764306370284,0.0212225,91411.0,91410.0,0.06965593]
[1764306375280,0.3912225,91411.0,91410.0,0.01336593]
[1764306375480,0.3912225,91411.0,91405.0,0.0349]
[1764306375481,0.0202231,91406.0,91405.0,0.0349]
[1764306375673,0.4102231,91406.0,91405.0,0.05629]
[1764306376985,0.7802231,91406.0,91405.0,0.05629]
[1764306377379,0.5602231,91406.0,91405.0,0.05629]
[1764306378479,0.8402231,91406.0,91405.0,0.05629]
[1764306378787,0.8412231,91406.0,91405.0,0.05629]
[1764306379993,0.5412231,91406.0,91405.0,0.06993081]
[1764306380384,0.4112231,91406.0,91405.0,0.06993081]
[1764306380585,0.8212231,91406.0,91405.0,0.06993081]
[1764306382790,0.40028,91406.0,91405.0,0.06993081]
[1764306384197,0.79028,91406.0,91405.0,0.06993081]
[1764306386197,0.53028,91406.0,91405.0,0.06993081]
[1764306387098,0.451,91406.0,91405.0,0.06993081]
[1764306387290,0.4712231,91406.0,91405.0,0.06993081]
[1764306387491,0.4712231,91406.0,91405.0,0.08087401]
[1764306387697,0.46028,91406.0,91405.0,0.08087401]
[1764306389195,0.37564,91406.0,91405.0,0.08087401]
[1764306389498,0.38028,91406.0,91405.0,0.08087401]
[1764306390291,0.38028,91406.0,91405.0,0.06993081]
[1764306393702,0.3912231,91406.0,91405.0,0.06993081]
[1764306394899,0.001,91406.0,91405.0,0.06993081]
[1764306396695,0.0202222,91414.0,91413.0,0.04365]
[1764306397002,0.4002222,91414.0,91413.0,0.04365]
[1764306399500,0.4012222,91414.0,91413.0,0.04365]
[1764306401713,0.00928,91409.0,91408.0,0.02178]
[1764306402012,0.76928,91409.0,91408.0,0.02178]
[1764306402214,0.76928,91409.0,91408.0,0.04365]
[1764306402400,0.76928,91409.0,91408.0,0.02178]
[1764306402605,0.00928,91406.0,91405.0,0.03542081]
[1764306402901,0.80928,91406.0,91405.0,0.05729081]
[1764306403107,0.80928,91406.0,91405.0,0.07122081]
[1764306404108,0.37928,91406.0,91405.0,0.07122081]
[1764306404812,0.37928,91406.0,91405.0,0.03542081]
[1764306405010,0.37928,91406.0,91405.0,0.01364081]
[1764306405219,0.00928,91401.0,91400.0,0.14622212]
[1764306405404,0.42928,91401.0,91400.0,0.14622212]
[1764306406815,0.42928,91401.0,91400.0,0.15936734]
[1764306410120,0.42928,91401.0,91400.0,0.08070892]
[1764306411920,0.33928,91401.0,91400.0,0.08070892]
[1764306417518,0.00928,91397.0,91396.0,0.07873218]
[1764306417816,0.00928,91392.0,91391.0,0.07873218]
[1764306418016,0.00928,91392.0,91380.0,0.01393]
[1764306418017,0.00928,91389.0,91387.0,0.07873218]
[1764306418218,0.77928,91389.0,91379.0,0.07873218]
[1764306418418,0.77928,91389.0,91377.0,0.07873218]
[1764306418623,0.77928,91389.0,91376.0,0.09266218]
[1764306419216,0.77928,91389.0,91376.0,0.01393]
[1764306420526,0.77928,91389.0,91388.0,0.00116409]
[1764306421025,0.77928,91389.0,91388.0,0.01428855]
[1764306422323,0.77928,91389.0,91372.0,0.09266218]
[1764306422324,0.00928,91373.0,91372.0,0.05811]
[1764306422524,0.41928,91373.0,91372.0,0.05811]
[1764306424830,0.41928,91373.0,91372.0,0.06211]
[1764306425326,0.41928,91373.0,91372.0,0.07517439]
[1764306428122,0.00016409,91382.0,91381.0,0.0551261]
[1764306429330,0.00944409,91382.0,91381.0,0.0551261]
[1764306429524,0.00944409,91382.0,91381.0,0.02147]
[1764306429723,0.00944409,91382.0,91381.0,0.04418]
[1764306430023,0.00016409,91382.0,91381.0,0.04418]
[1764306430225,0.00944409,91382.0,91381.0,0.04418]
[1764306430530,0.00480409,91382.0,91381.0,0.04418]
[1764306431032,0.00944409,91382.0,91381.0,0.04418]
[1764306432231,0.00944409,91382.0,91381.0,0.04618]
[1764306433026,0.02039009,91382.0,91381.0,0.04618]
[1764306434833,0.39944409,91382.0,91381.0,0.04618]
[1764306436731,0.39944409,91382.0,91381.0,0.02347]
[1764306438035,0.39944409,91382.0,91381.0,0.04618]
[1764306439237,0.39016409,91382.0,91381.0,0.04618]
[1764306439441,0.00016409,91382.0,91381.0,0.04618]
[1764306446742,0.00480409,91382.0,91381.0,0.04618]
[1764306447339,0.00016409,91382.0,91381.0,0.04618]
[1764306452545,0.00944409,91382.0,91381.0,0.04618]
[1764306453247,0.00016409,91382.0,91381.0,0.04618]
[1764306462641,0.00944409,91382.0,91381.0,0.04618]
[1764306463045,0.00016409,91382.0,91381.0,0.04618]
[1764306464061,0.0205426,91410.0,91409.0,0.04393]
[1764306464253,0.3705426,91410.0,91409.0,0.04393]
[1764306473264,0.3705426,91410.0,91409.0,0.05850226]
[1764306474665,0.0348,91410.0,91409.0,0.06944496]
[1764306474961,0.02070569,91419.0,91418.0,0.04393]
[1764306475164,0.42070569,91419.0,91418.0,0.04393]
[1764306480265,0.0205427,91409.0,91408.0,0.01431469]
[1764306480462,0.0205437,91401.0,91400.0,0.05765409]
[1764306480663,0.4605437,91401.0,91400.0,0.05765409]
[1764306481063,0.4605437,91401.0,91400.0,0.07209642]
[1764306482267,0.4605437,91401.0,91400.0,0.08304022]
[1764306482670,0.4605437,91401.0,91400.0,0.07209642]
[1764306484164,0.4605437,91401.0,91400.0,0.04984642]
[1764306484672,0.4605437,91401.0,91400.0,0.07227642]
[1764306488874,0.4448,91401.0,91400.0,0.07227642]
[1764306489078,0.0157434,91404.0,91403.0,0.04529]
[1764306489274,0.4105434,91404.0,91403.0,0.04529]
[1764306489679,0.0805434,91404.0,91403.0,0.04529]
[1764306490084,0.4505434,91404.0,91403.0,0.04529]
[1764306490874,0.4505434,91404.0,91403.0,0.04629]
[1764306492877,0.00976409,91419.0,91418.0,0.04529]
[1764306493073,0.36530566,91419.0,91418.0,0.04529]
[1764306493982,0.02476406,91419.0,91418.0,0.0562317]
[1764306494183,0.00016409,91419.0,91418.0,0.0562317]
[1764306495086,0.00976409,91419.0,91418.0,0.0562317]
[1764306495386,0.01276409,91419.0,91418.0,0.0562317]
[1764306497681,0.00316409,91419.0,91418.0,0.0562317]
[1764306497883,0.0157401,91431.0,91430.0,0.05871]
[1764306498087,0.4457401,91431.0,91430.0,0.05871]
[1764306498483,0.4505401,91431.0,91430.0,0.05871]
[1764306498787,0.4057401,91431.0,91430.0,0.05871]
[1764306498988,0.0157401,91431.0,91430.0,0.05871]
[1764306499188,0.4309401,91431.0,91430.0,0.05871]
[1764306499585,0.4357401,91431.0,91430.0,0.05871]
[1764306499886,0.4405401,91431.0,91430.0,0.05871]
[1764306501192,0.4405401,91431.0,91430.0,0.05971]
[1764306504489,0.4405401,91431.0,91430.0,0.05871]
[1764306504689,0.4405401,91431.0,91430.0,0.06071]
[1764306505495,0.4405401,91431.0,91430.0,0.07499289]
[1764306506292,0.4405401,91431.0,91430.0,0.08593309]
[1764306508387,0.42,91431.0,91430.0,0.08593309]
[1764306508586,0.17256409,91440.0,91439.0,0.0552192]
[1764306508587,0.00976409,91440.0,91439.0,0.0552192]
[1764306508796,0.36976409,91440.0,91439.0,0.04428]
[1764306511995,0.36976409,91440.0,91430.0,0.18099814]
[1764306511996,0.0096,91431.0,91430.0,0.01428289]
[1764306512192,0.0205412,91422.0,91415.0,0.01355]
[1764306512393,0.4705412,91422.0,91415.0,0.01355]
[1764306512996,0.4705412,91422.0,91421.0,0.01406624]
[1764306513202,0.4705412,91422.0,91421.0,0.00016409]
[1764306513591,0.4705412,91422.0,91421.0,0.00416409]
[1764306514503,0.4705412,91422.0,91421.0,0.04977409]
[1764306514504,0.0348,91422.0,91421.0,0.04977409]
[1764306514803,0.3396,91422.0,91421.0,0.04977409]
[1764306515195,0.0396,91422.0,91421.0,0.04977409]
[1764306516102,0.4396,91422.0,91421.0,0.04977409]
[1764306516897,0.1596,91422.0,91421.0,0.05671539]
[1764306517098,0.1548,91422.0,91421.0,0.06071539]
[1764306517491,0.1548,91422.0,91421.0,0.07518159]
[1764306517903,0.0048,91429.0,91428.0,0.05916]
[1764306518098,0.17236,91436.0,91435.0,0.04561]
[1764306518307,0.00016409,91440.0,91439.0,0.04561]
[1764306518701,0.00976409,91440.0,91439.0,0.04561]
[1764306519107,0.00016409,91440.0,91439.0,0.04561]
[1764306522111,0.1928969,91459.0,91458.0,0.05916]
[1764306522295,0.65716022,91459.0,91458.0,0.05916]
[1764306522898,0.65716022,91459.0,91458.0,0.03651]
[1764306523108,0.0096,91453.0,91452.0,0.05916]
[1764306523303,0.4596,91453.0,91452.0,0.05916]
[1764306526609,0.4626,91453.0,91452.0,0.07366028]
[1764306529409,0.153,91453.0,91452.0,0.07366028]
[1764306529600,0.003,91453.0,91452.0,0.07366028]
[1764306531917,0.18196,91459.0,91458.0,0.05916]
[1764306532412,0.18196,91459.0,91458.0,0.0700969]
[1764306532811,0.0096,91459.0,91458.0,0.0700969]
[1764306534512,0.0126,91459.0,91458.0,0.0700969]
[1764306537199,0.003,91459.0,91458.0,0.0700969]
[1764306538907,0.01387,91462.0,91461.0,0.0565465]
[1764306540010,0.00016409,91468.0,91467.0,0.0565458]
[1764306542712,0.1832546,91477.0,91476.0,0.0109347]
[1764306542909,0.1880546,91477.0,91476.0,0.0559347]
[1764306543309,0.0157346,91477.0,91476.0,0.0559347]
[1764306543509,0.0048,91477.0,91476.0,0.0559347]
[1764306543705,0.0205342,91481.0,91480.0,0.05842]
[1764306544010,0.1457342,91481.0,91480.0,0.05842]
[1764306544317,0.1505342,91481.0,91480.0,0.05842]
[1764306544510,0.3905342,91481.0,91480.0,0.05842]
[1764306544710,0.0048,91485.0,91484.0,0.045]
[1764306544909,0.1448,91485.0,91484.0,0.045]
[1764306545109,0.1361406,91485.0,91484.0,0.045]
[1764306545310,0.00043727,91486.0,91485.0,0.05842]
[1764306546018,0.01137077,91486.0,91485.0,0.05842]
[1764306548124,0.00043727,91486.0,91485.0,0.05842]
[1764306548426,0.00143727,91486.0,91485.0,0.05842]
[1764306554230,0.00143727,91486.0,91485.0,0.0693537]
[1764306556330,0.00143727,91486.0,91485.0,0.05842]
[1764306556631,0.00143727,91486.0,91485.0,0.0693537]
[1764306558231,0.0356712,91506.0,91505.0,0.06007]
[1764306558430,0.0356717,91501.0,91500.0,0.06007]
[1764306558631,0.86972145,91501.0,91500.0,0.06007]
[1764306559920,0.86972145,91501.0,91500.0,0.07207]
[1764306561338,0.42972145,91501.0,91500.0,0.07207]
[1764306562332,0.00010887,91510.0,91500.0,0.02573]
[1764306562632,0.0356716,91503.0,91502.0,0.04634]
[1764306563232,0.01237,91503.0,91502.0,0.04634]
[1764306563536,0.0356711,91507.0,91506.0,0.04634]
[1764306563732,0.4256711,91507.0,91506.0,0.04634]
[1764306564326,0.39,91507.0,91506.0,0.04634]
[1764306564527,0.00010887,91510.0,91509.0,0.04634]
[1764306564730,0.00010887,91510.0,91505.0,0.01373]
[1764306564731,0.0109296,91520.0,91519.0,0.04634]